fUSD/lending_fUSD_20241210
["ID","MTS","AMOUNT","RATE_DAILY","PERIOD"]
[344825605,1733809837870,-150.0,0.00010877,2]
[344825606,1733809837881,-974.74,0.000109,2]
[344825607,1733809837890,-472.14,0.00010912,2]
[344825608,1733809837899,-156.564832,0.00010958,2]
[344825609,1733809837908,-156.564832,0.00010958,2]
[344825610,1733809837917,-156.564832,0.00010958,2]
[344825611,1733809837926,-156.564832,0.00010958,2]
[344825612,1733809837935,-156.564832,0.00010958,2]
[344825613,1733809837944,-156.564832,0.00010958,2]
[344825614,1733809837953,-156.564832,0.00010958,2]
[344825615,1733809837962,-156.564832,0.00010958,2]
[344825616,1733809837971,-156.564832,0.00010958,2]
[344825617,1733809837980,-156.564832,0.00010958,2]
[344825618,1733809837990,-156.564832,0.00010958,2]
[344825619,1733809837999,-278.21783,0.00010958,2]
[344825620,1733809838008,-3949.1914,0.00011,2]
[344825621,1733809838017,-280.0,0.00011,6]
[344825622,1733809838027,-256.42,0.00011,2]
[344825623,1733809838035,-150.0,0.00011,2]
[344825624,1733809838044,-300.0,0.00011,2]
[344825625,1733809838053,-727.63,0.00011,2]
[344825626,1733809838063,-150.0,0.00011,2]
[344825628,1733809838072,-435.34,0.00011,2]
[344825630,1733809838081,-537.53,0.00011014,2]
[344825632,1733809838091,-500.0,0.00011073,2]
[344825634,1733809838100,-1262.0,0.00011086,2]
[344825635,1733809838109,-1894.0,0.00011086,2]
[344825636,1733809838118,-564.0,0.00011086,2]
[344825637,1733809838130,-3763.0,0.00011086,2]
[344825638,1733809838139,-817.0,0.00011086,2]
[344825639,1733809838148,-1253.0,0.00011086,2]
[344825640,1733809838157,-3595.0,0.00011086,2]
[344825641,1733809838167,-535.0,0.00011086,2]
[344825642,1733809838176,-973.0,0.00011086,2]
[344825643,1733809838185,-150.0,0.00011086,2]
[344825644,1733809838194,-250.0,0.00011086,2]
[344825645,1733809838203,-982.704,0.00011086,2]
[344825646,1733809838212,-227.0,0.00011086,2]
[344825647,1733809838221,-519.62818327,0.00011096,2]
[344825648,1733809838231,-500.0,0.00011096,2]
[344825649,1733809838240,-500.0,0.00011096,2]
[344825650,1733809838248,-500.0,0.00011096,2]
[344825651,1733809838258,-500.0,0.00011096,2]
[344825652,1733809838267,-500.0,0.00011096,2]
[344825653,1733809838276,-500.0,0.00011096,2]
[344825654,1733809838287,-500.0,0.00011096,2]
[344825655,1733809838295,-500.0,0.00011096,2]
[344825656,1733809838304,-500.0,0.00011096,2]
[344825657,1733809838314,-500.0,0.00011096,2]
[344825658,1733809838323,-327.3961344,0.00011096,2]
[344825659,1733809838332,-191.92273031,0.00011096,2]
[344825660,1733809838342,-503.79092383,0.00011096,2]
[344825661,1733809838351,-500.0,0.00011096,2]
[344825662,1733809838361,-500.0,0.00011096,2]
[344825663,1733809838370,-503.87076295,0.00011097,2]
[344825664,1733809838383,-150.06689548,0.00011097,2]
[344825665,1733809838393,-364.49012574,0.00011097,2]
[344825666,1733809838403,-500.0,0.00011097,2]
[344825667,1733809838412,-500.0,0.00011097,2]
[344825668,1733809838421,-180.107,0.00011097,2]
[344825669,1733809838431,-500.0,0.00011097,2]
[344825670,1733809838440,-500.0,0.00011097,2]
[344825671,1733809838449,-500.0,0.00011097,2]
[344825672,1733809838458,-500.0,0.00011097,2]
[344825673,1733809838467,-500.0,0.00011097,2]
[344825674,1733809838477,-300.0,0.00011098,2]
[344825675,1733809838486,-300.0,0.00011098,2]
[344825676,1733809838495,-300.0,0.00011098,2]
[344825677,1733809838505,-300.0,0.00011098,2]
[344825678,1733809838514,-300.0,0.00011098,2]
[344825679,1733809838523,-300.0,0.00011098,2]
[344825680,1733809838532,-300.0,0.00011098,2]
[344825681,1733809838542,-300.0,0.00011098,2]
[344825682,1733809838552,-300.0,0.00011098,2]
[344825683,1733809838561,-300.0,0.00011098,2]
[344825684,1733809838570,-300.0,0.00011098,3]
[344825685,1733809838580,-300.0,0.00011098,3]
[344825686,1733809838589,-300.0,0.00011098,3]
[344825687,1733809838599,-300.0,0.00011098,3]
[344825688,1733809838610,-300.0,0.00011098,3]
[344825689,1733809838619,-300.0,0.00011098,3]
[344825690,1733809838631,-300.0,0.00011098,3]
[344825691,1733809838642,-300.0,0.00011098,3]
[344825692,1733809838651,-300.0,0.00011098,3]
[344825693,1733809838660,-300.0,0.00011098,3]
[344825694,1733809838670,-500.0,0.00011098,2]
[344825695,1733809838679,-500.0,0.00011098,2]
[344825696,1733809838689,-500.0,0.00011098,2]
[344825697,1733809838698,-500.0,0.00011098,2]
[344825698,1733809838707,-1495.923,0.00011098,2]
[344825699,1733809838716,-500.0,0.00011098,2]
[344825700,1733809838726,-500.0,0.00011098,2]
[344825701,1733809838735,-500.0,0.00011098,2]
[344825702,1733809838744,-500.0,0.00011098,2]
[344825703,1733809838753,-500.0,0.00011098,2]
[344825704,1733809838763,-193.29,0.00011098,2]
[344825705,1733809838772,-500.0,0.00011098,2]
[344825706,1733809838781,-609.3791303,0.00011098,2]
[344825707,1733809838790,-546.2,0.00011098,2]
[344825708,1733809838799,-500.0,0.00011098,2]
[344825709,1733809838808,-500.0,0.00011098,2]
[344825710,1733809838817,-500.0,0.00011098,2]
[344825711,1733809838827,-500.0,0.00011098,2]
[344825712,1733809838836,-500.0,0.00011098,2]
[344825713,1733809838845,-313.71,0.00011098,2]
[344825714,1733809838854,-441.82,0.00011099,2]
[344825715,1733809838863,-500.0,0.00011099,2]
[344825716,1733809838872,-500.0,0.00011099,2]
[344825717,1733809838884,-500.0,0.00011099,2]
[344825718,1733809838894,-500.0,0.00011099,2]
[344825719,1733809838903,-500.0,0.00011099,2]
[344825720,1733809838912,-500.0,0.00011099,2]
[344825721,1733809838922,-385.68,0.00011099,2]
[344825722,1733809838931,-500.0,0.00011099,2]
[344825723,1733809838941,-500.0,0.00011099,2]
[344825724,1733809838950,-500.0,0.00011099,2]
[344825725,1733809838959,-500.0,0.00011099,2]
[344825726,1733809838969,-500.0,0.00011099,2]
[344825727,1733809838978,-500.0,0.00011099,2]
[344825728,1733809838987,-467.17034012,0.00011099,2]
[344825729,1733809838996,-500.0,0.00011099,2]
[344825730,1733809839006,-500.0,0.00011099,2]
[344825731,1733809839018,-500.0,0.00011099,2]
[344825732,1733809839029,-500.0,0.00011099,2]
[344825733,1733809839038,-500.0,0.00011099,2]
[344825734,1733809839048,-500.0,0.00011099,2]
[344825735,1733809839057,-500.0,0.00011099,2]
[344825736,1733809839067,-500.0,0.00011099,2]
[344825737,1733809839076,-500.0,0.00011099,2]
[344825738,1733809839085,-500.0,0.00011099,2]
[344825739,1733809839095,-500.0,0.00011099,2]
[344825740,1733809839104,-500.0,0.00011099,2]
[344825741,1733809839113,-500.0,0.00011099,2]
[344825742,1733809839123,-500.0,0.00011099,2]
[344825743,1733809839135,-500.0,0.00011099,2]
[344825744,1733809839148,-500.0,0.00011099,2]
[344825745,1733809839157,-500.0,0.00011099,2]
[344825746,1733809839166,-500.0,0.00011099,2]
[344825747,1733809839176,-500.0,0.00011099,2]
[344825748,1733809839186,-500.0,0.00011099,2]
[344825749,1733809839196,-557.51949662,0.00011099,2]
[344825750,1733809839205,-544.09,0.00011099,2]
[344825751,1733809839215,-544.09,0.00011099,2]
[344825752,1733809839224,-544.09,0.00011099,2]
[344825753,1733809839234,-544.09,0.00011099,2]
[344825754,1733809839244,-544.09,0.00011099,2]
[344825755,1733809839254,-544.09,0.00011099,2]
[344825756,1733809839264,-544.09,0.00011099,2]
[344825757,1733809839275,-544.09,0.00011099,2]
[344825758,1733809839285,-544.09,0.00011099,2]
[344825759,1733809839295,-544.09,0.00011099,2]
[344825760,1733809839304,-544.09,0.00011099,2]
[344825761,1733809839314,-544.09,0.00011099,2]
[344825762,1733809839324,-544.09,0.00011099,2]
[344825763,1733809839333,-544.09,0.00011099,2]
[344825764,1733809839343,-544.09,0.00011099,2]
[344825765,1733809839352,-544.09,0.00011099,2]
[344825766,1733809839362,-544.09,0.00011099,2]
[344825767,1733809839371,-544.09,0.00011099,2]
[344825768,1733809839382,-544.09,0.00011099,2]
[344825769,1733809839392,-544.09,0.00011099,2]
[344825770,1733809839401,-544.09,0.00011099,2]
[344825771,1733809839410,-544.09,0.00011099,2]
[344825772,1733809839420,-544.09,0.00011099,2]
[344825773,1733809839430,-544.27,0.00011099,2]
[344825774,1733809839441,-500.0,0.00011099,2]
[344825775,1733809839450,-500.0,0.00011099,2]
[344825776,1733809839460,-500.0,0.00011099,2]
[344825777,1733809839470,-500.0,0.00011099,2]
[344825778,1733809839479,-536.54831356,0.00011099,2]
[344825779,1733809839489,-500.0,0.00011099,2]
[344825780,1733809839499,-500.0,0.00011099,2]
[344825781,1733809839509,-500.0,0.00011099,2]
[344825782,1733809839519,-500.0,0.00011099,2]
[344825783,1733809839528,-494.46862254,0.00011099,2]
[344825784,1733809839537,-500.0,0.00011099,2]
[344825785,1733809839547,-500.0,0.00011099,2]
[344825786,1733809839557,-500.0,0.00011099,2]
[344825787,1733809839566,-500.0,0.00011099,2]
[344825788,1733809839576,-500.0,0.00011099,2]
[344825789,1733809839586,-500.0,0.00011099,2]
[344825790,1733809839596,-500.0,0.00011099,2]
[344825791,1733809839608,-500.0,0.00011099,2]
[344825792,1733809839617,-500.0,0.00011099,2]
[344825793,1733809839628,-500.0,0.00011099,2]
[344825794,1733809839637,-500.0,0.00011099,2]
[344825795,1733809839649,-500.0,0.00011099,2]
[344825796,1733809839659,-500.0,0.00011099,2]
[344825797,1733809839669,-500.0,0.00011099,2]
[344825798,1733809839679,-500.0,0.00011099,2]
[344825799,1733809839689,-500.0,0.00011099,2]
[344825800,1733809839699,-500.0,0.00011099,2]
[344825801,1733809839708,-500.0,0.00011099,2]
[344825802,1733809839718,-397.0789237,0.00011099,2]
[344825803,1733809839727,-500.0,0.00011099,2]
[344825804,1733809839736,-500.0,0.00011099,2]
[344825805,1733809839747,-500.0,0.00011099,2]
[344825806,1733809839756,-500.0,0.00011099,2]
[344825807,1733809839766,-500.0,0.00011099,2]
[344825808,1733809839775,-500.0,0.00011099,2]
[344825809,1733809839785,-500.0,0.00011099,2]
[344825810,1733809839795,-500.0,0.00011099,2]
[344825811,1733809839804,-500.0,0.00011099,2]
[344825812,1733809839814,-500.0,0.00011099,2]
[344825813,1733809839823,-500.0,0.00011099,2]
[344825814,1733809839832,-500.0,0.00011099,2]
[344825815,1733809839841,-500.0,0.00011099,2]
[344825816,1733809839851,-500.0,0.00011099,2]
[344825817,1733809839860,-500.0,0.00011099,2]
[344825818,1733809839869,-327.88,0.00011099,2]
[344825819,1733809839880,-500.0,0.00011099,2]
[344825820,1733809839890,-500.0,0.00011099,2]
[344825821,1733809839899,-500.0,0.00011099,2]
[344825822,1733809839909,-500.0,0.00011099,2]
[344825823,1733809839918,-500.0,0.00011099,2]
[344825824,1733809839928,-500.0,0.00011099,2]
[344825825,1733809839937,-500.0,0.00011099,2]
[344825826,1733809839947,-500.0,0.00011099,2]
[344825827,1733809839957,-500.0,0.00011099,2]
[344825828,1733809839966,-500.0,0.00011099,2]
[344825829,1733809839976,-500.0,0.00011099,2]
[344825830,1733809839985,-500.0,0.00011099,2]
[344825831,1733809839995,-420.6728447,0.00011099,2]
[344825832,1733809840004,-500.0,0.00011099,2]
[344825833,1733809840013,-570.76,0.00011099,2]
[344825834,1733809840023,-500.0,0.00011099,2]
[344825835,1733809840032,-500.0,0.00011099,2]
[344825836,1733809840041,-500.0,0.00011099,2]
[344825837,1733809840050,-341.96,0.00011099,2]
[344825838,1733809840059,-213.84299799,0.00011099,2]
[344825839,1733809840069,-500.0,0.00011099,2]
[344825840,1733809840078,-500.0,0.00011099,2]
[344825841,1733809840088,-500.0,0.00011099,2]
[344825842,1733809840098,-500.0,0.00011099,2]
[344825843,1733809840107,-500.0,0.00011099,2]
[344825844,1733809840117,-532.6,0.00011099,2]
[344825845,1733809840128,-500.0,0.00011099,2]
[344825846,1733809840138,-500.0,0.00011099,2]
[344825847,1733809840147,-500.0,0.00011099,2]
[344825848,1733809840156,-500.0,0.00011099,2]
[344825849,1733809840166,-500.0,0.00011099,2]
[344825850,1733809840176,-500.0,0.00011099,2]
[344825851,1733809840185,-500.0,0.00011099,2]
[344825852,1733809840194,-500.0,0.00011099,2]
[344825853,1733809840203,-500.0,0.00011099,2]
[344825854,1733809840214,-500.0,0.00011099,2]
[344825855,1733809840223,-500.0,0.00011099,2]
[344825856,1733809840232,-500.0,0.00011099,2]
[344825857,1733809840242,-257.69651579,0.00011099,2]
[344825858,1733809840252,-500.0,0.00011099,2]
[344825859,1733809840261,-500.0,0.00011099,2]
[344825860,1733809840271,-500.0,0.00011099,2]
[344825861,1733809840280,-500.0,0.00011099,2]
[344825862,1733809840290,-500.0,0.00011099,2]
[344825863,1733809840300,-500.0,0.00011099,2]
[344825864,1733809840309,-500.0,0.00011099,2]
[344825865,1733809840318,-500.0,0.00011099,2]
[344825866,1733809840327,-500.0,0.00011099,2]
[344825867,1733809840337,-500.0,0.00011099,2]
[344825868,1733809840346,-500.0,0.00011099,2]
[344825869,1733809840355,-500.0,0.00011099,2]
[344825870,1733809840365,-500.0,0.00011099,2]
[344825871,1733809840375,-500.0,0.00011099,2]
[344825872,1733809840386,-484.42,0.00011099,2]
[344825873,1733809840396,-500.0,0.00011099,2]
[344825874,1733809840406,-202.70843834,0.00011099,2]
[344825875,1733809840416,-500.0,0.00011099,2]
[344825876,1733809840425,-500.0,0.00011099,2]
[344825877,1733809840435,-500.0,0.00011099,2]
[344825878,1733809840444,-500.0,0.00011099,2]
[344825879,1733809840454,-500.0,0.00011099,2]
[344825880,1733809840463,-500.0,0.00011099,2]
[344825881,1733809840473,-500.0,0.00011099,2]
[344825882,1733809840482,-500.0,0.00011099,2]
[344825883,1733809840491,-329.44,0.00011099,2]
[344825884,1733809840500,-500.0,0.00011099,2]
[344825885,1733809840510,-615.84,0.00011099,2]
[344825886,1733809840519,-500.0,0.00011099,2]
[344825887,1733809840528,-500.0,0.00011099,2]
[344825888,1733809840537,-500.0,0.00011099,2]
[344825889,1733809840547,-556.21,0.00011099,2]
[344825890,1733809840556,-500.0,0.00011099,2]
[344825891,1733809840565,-500.0,0.00011099,2]
[344825892,1733809840575,-500.0,0.00011099,2]
[344825893,1733809840584,-577.43,0.00011099,2]
[344825894,1733809840594,-500.0,0.00011099,2]
[344825895,1733809840607,-500.0,0.00011099,2]
[344825896,1733809840617,-500.0,0.00011099,2]
[344825897,1733809840626,-500.0,0.00011099,2]
[344825898,1733809840638,-500.0,0.00011099,2]
[344825899,1733809840648,-500.0,0.00011099,2]
[344825900,1733809840658,-500.0,0.00011099,2]
[344825901,1733809840855,-500.0,0.00011099,2]
[344825902,1733809840865,-500.0,0.00011099,2]
[344825903,1733809840874,-500.0,0.00011099,2]
[344825904,1733809840885,-500.0,0.00011099,2]
[344825905,1733809840894,-500.0,0.00011099,2]
[344825906,1733809840903,-500.0,0.00011099,2]
[344825907,1733809840912,-500.0,0.00011099,2]
[344825908,1733809840922,-500.0,0.00011099,2]
[344825909,1733809840931,-500.0,0.00011099,2]
[344825910,1733809840940,-452.99,0.00011099,2]
[344825911,1733809840949,-500.0,0.00011099,2]
[344825912,1733809840958,-500.0,0.00011099,2]
[344825913,1733809840967,-500.0,0.00011099,2]
[344825914,1733809840977,-500.0,0.00011099,2]
[344825915,1733809840986,-500.0,0.00011099,2]
[344825916,1733809840995,-500.0,0.00011099,2]
[344825917,1733809841004,-631.35,0.00011099,2]
[344825918,1733809841013,-500.0,0.00011099,2]
[344825919,1733809841022,-328.42,0.00011099,2]
[344825920,1733809841031,-500.0,0.00011099,2]
[344825921,1733809841040,-500.0,0.00011099,2]
[344825922,1733809841050,-500.0,0.00011099,2]
[344825923,1733809841059,-500.0,0.00011099,2]
[344825924,1733809841068,-500.0,0.00011099,2]
[344825925,1733809841077,-500.0,0.00011099,2]
[344825926,1733809841086,-500.0,0.00011099,2]
[344825927,1733809841095,-500.0,0.00011099,2]
[344825928,1733809841104,-500.0,0.00011099,2]
[344825929,1733809841114,-500.0,0.00011099,2]
[344825930,1733809841123,-500.0,0.00011099,2]
[344825931,1733809841133,-612.82,0.00011099,2]
[344825932,1733809841142,-500.0,0.00011099,2]
[344825933,1733809841151,-371.64,0.00011099,2]
[344825934,1733809841160,-500.0,0.00011099,2]
[344825935,1733809841170,-500.0,0.00011099,2]
[344825936,1733809841179,-487.82,0.00011099,2]
[344825937,1733809841189,-351.03484274,0.00011099,2]
[344825938,1733809841199,-855.21,0.00011099,2]
[344825939,1733809841208,-855.21,0.00011099,2]
[344825940,1733809841217,-855.21,0.00011099,2]
[344825941,1733809841227,-855.21,0.00011099,2]
[344825942,1733809841236,-855.21,0.00011099,2]
[344825943,1733809841245,-855.21,0.00011099,2]
[344825944,1733809841254,-855.21,0.00011099,2]
[344825945,1733809841263,-855.21,0.00011099,2]
[344825946,1733809841272,-855.21,0.00011099,2]
[344825947,1733809841281,-855.21,0.00011099,2]
[344825948,1733809841291,-855.21,0.00011099,2]
[344825949,1733809841300,-855.21,0.00011099,2]
[344825950,1733809841309,-855.21,0.00011099,2]
[344825951,1733809841318,-855.21,0.00011099,2]
[344825952,1733809841327,-855.21,0.00011099,2]
[344825953,1733809841336,-855.21,0.00011099,2]
[344825954,1733809841346,-855.21,0.00011099,2]
[344825955,1733809841355,-855.21,0.00011099,2]
[344825956,1733809841364,-500.0,0.00011099,2]
[344825957,1733809841373,-855.21,0.00011099,2]
[344825958,1733809841385,-151.61,0.00011099,2]
[344825959,1733809841394,-855.21,0.00011099,2]
[344825960,1733809841403,-855.21,0.00011099,2]
[344825961,1733809841413,-855.21,0.00011099,2]
[344825962,1733809841422,-855.21,0.00011099,2]
[344825963,1733809841432,-855.41883722,0.00011099,2]
[344825964,1733809841441,-500.0,0.00011099,2]
[344825965,1733809841451,-500.0,0.00011099,2]
[344825966,1733809841460,-500.0,0.00011099,2]
[344825967,1733809841470,-500.0,0.00011099,2]
[344825968,1733809841479,-565.01,0.00011099,2]
[344825969,1733809841488,-500.0,0.00011099,2]
[344825970,1733809841498,-500.0,0.00011099,2]
[344825971,1733809841508,-500.0,0.00011099,2]
[344825972,1733809841517,-500.0,0.00011099,2]
[344825973,1733809841527,-500.0,0.00011099,2]
[344825974,1733809841537,-500.0,0.00011099,2]
[344825975,1733809841547,-500.0,0.00011099,2]
[344825976,1733809841557,-500.0,0.00011099,2]
[344825977,1733809841566,-500.0,0.00011099,2]
[344825978,1733809841576,-500.0,0.00011099,2]
[344825979,1733809841585,-574.56256838,0.00011099,2]
[344825980,1733809841595,-500.0,0.00011099,2]
[344825981,1733809841608,-500.0,0.00011099,2]
[344825982,1733809841618,-500.0,0.00011099,2]
[344825983,1733809841630,-433.71248833,0.00011099,2]
[344825984,1733809841641,-500.0,0.00011099,2]
[344825985,1733809841650,-262.26,0.00011099,2]
[344825986,1733809841660,-500.0,0.00011099,2]
[344825987,1733809841670,-500.0,0.00011099,2]
[344825988,1733809841680,-484.52101045,0.00011099,2]
[344825989,1733809841690,-500.0,0.00011099,2]
[344825990,1733809841700,-500.0,0.00011099,2]
[344825991,1733809841709,-500.0,0.00011099,2]
[344825992,1733809841719,-500.0,0.00011099,2]
[344825993,1733809841728,-500.0,0.00011099,2]
[344825994,1733809841738,-520.26611277,0.00011099,2]
[344825995,1733809841748,-500.0,0.00011099,2]
[344825996,1733809841757,-500.0,0.00011099,2]
[344825997,1733809841767,-911.0,0.00011099,2]
[344825998,1733809841777,-4332687.95251756,0.000111,2]
[344825999,1733809841786,-150918.0749765,0.000111,2]
[344826000,1733809841795,-10604487.86348101,0.000111,2]
[344826001,1733809842143,-534.1,0.000111,2]
[344826002,1733809842179,-156.095,0.00011086,2]
[344826003,1733809842189,-4689.05593564,0.000111,2]
[344826004,1733809842201,-131050.9641129,0.000111,2]
[344826005,1733809842213,-1009.8,0.000111,2]
[344826006,1733809842224,-402.60607054,0.000111,2]
[344826007,1733809842237,-561.52499604,0.000111,2]
[344826010,1733809842692,-656.10334691,0.000111,2]
[344826011,1733809842703,-2008.66294961,0.000111,2]
[344826012,1733809842714,-43445.92791504,0.000111,2]
[344826013,1733809842917,-326.55708854,0.000111,2]
[344826025,1733809845752,-278.21783,0.000109,2]
[344826026,1733809845848,-696.52217,0.000109,2]
[344826027,1733809845858,-167.0,0.00011086,2]
[344826028,1733809845868,-26605.68040748,0.000111,2]
[344826051,1733810336496,265.0,0.000155,60]
[344826057,1733810822182,287.13,9.02e-05,10]
[344826067,1733811031948,-2000.0,7.8e-05,2]
[344826068,1733811031957,-152.09,8.163e-05,2]
[344826069,1733811031967,-440.37,8.219e-05,2]
[344826070,1733811031977,-266.27303646,8.645e-05,2]
[344826071,1733811031987,-165.27,9.707e-05,2]
[344826072,1733811031996,-250.0,9.762e-05,2]
[344826073,1733811032009,-300.0,9.852e-05,2]
[344826074,1733811032021,-2052.17518014,9.853e-05,2]
[344826075,1733811032088,-451.88018581,9.853e-05,2]
[344826076,1733811032100,-4270.84911626,9.853e-05,2]
[344826077,1733811032188,-3034.65551779,9.853e-05,2]
[344826078,1733811032198,-250.0,9.874e-05,2]
[344826079,1733811032207,-418.82,9.959e-05,2]
[344826080,1733811032216,-630.02,9.983e-05,2]
[344826081,1733811032226,-150.0,0.00010017,2]
[344826082,1733811032236,-261.21,0.00010138,2]
[344826083,1733811032246,-531.54,0.00010203,2]
[344826084,1733811032255,-4641.75,0.00010203,2]
[344826085,1733811032264,-152.09,0.00010203,2]
[344826086,1733811032274,-150.0,0.00010278,2]
[344826087,1733811032283,-364.37,0.00010278,2]
[344826088,1733811032292,-150.0,0.00010278,2]
[344826090,1733811032301,-364.37,0.00010278,2]
[344826091,1733811032311,-364.37,0.00010278,2]
[344826092,1733811032320,-150.0,0.00010278,2]
[344826093,1733811032332,-364.37,0.00010278,2]
[344826094,1733811032342,-300.77,0.00010278,2]
[344826095,1733811032351,-364.37,0.00010278,2]
[344826096,1733811032360,-718.97,0.00010278,2]
[344826097,1733811032370,-974.74,0.00010278,2]
[344826098,1733811032379,-364.31,0.00010278,2]
[344826099,1733811032388,-974.74,0.00010278,2]
[344826100,1733811032397,-768.05,0.00010341,2]
[344826102,1733811032407,-1000.0,0.00010353,2]
[344826104,1733811032416,-150.0,0.00010358,2]
[344826106,1733811032426,-151.29,0.0001038,2]
[344826108,1733811032436,-440.37,0.00010462,2]
[344826110,1733811032445,-150.67,0.00010478,2]
[344826112,1733811032454,-262.19128221,0.00010478,2]
[344826128,1733811037777,-712.71871779,0.00010478,2]
[344826129,1733811037786,-974.91,0.00010478,2]
[344826130,1733811037796,-974.91,0.00010478,2]
[344826131,1733811037805,-997.96,0.00010478,2]
[344826132,1733811037814,-261.21,0.00010513,2]
[344826133,1733811037823,-372.965,0.0001055,2]
[344826134,1733811037834,-150.0,0.00010623,2]
[344826135,1733811037843,-1536.5,0.00010624,2]
[344826136,1733811037853,-871.14,0.00010624,2]
[344826137,1733811037863,-974.74,0.00010678,2]
[344826138,1733811037872,-974.74,0.00010678,2]
[344826139,1733811037882,-261.21,0.00010888,2]
[344826140,1733811037892,-3000.0,0.0001099,2]
[344826141,1733811037901,-500.0,0.00010999,2]
[344826142,1733811037911,-31015.2148,0.00010999,2]
[344826143,1733811037920,-1000.0,0.00010999,2]
[344826144,1733811037929,-2500.0,0.00011,2]
[344826145,1733811037939,-3400.0,0.00011,2]
[344826146,1733811037948,-3169.06301424,0.00011,2]
[344826147,1733811037958,-974.74,0.00011,2]
[344826148,1733811037967,-1000.0,0.00011,2]
[344826149,1733811037976,-500.0,0.00011073,2]
[344826150,1733811037986,-151.293,0.00011086,2]
[344826151,1733811037996,-150.0,0.00011086,2]
[344826152,1733811038007,-150.183,0.00011086,2]
[344826153,1733811038017,-1262.0,0.00011086,2]
[344826154,1733811038025,-150.413,0.00011086,2]
[344826155,1733811038035,-1894.0,0.00011086,2]
[344826156,1733811038044,-3763.0,0.00011086,2]
[344826157,1733811038054,-1253.0,0.00011086,2]
[344826158,1733811038063,-814.0,0.00011086,2]
[344826159,1733811038072,-961.623,0.00011086,2]
[344826160,1733811038085,-3524.569,0.00011086,2]
[344826161,1733811038094,-535.0,0.00011086,2]
[344826162,1733811038103,-150.0,0.00011086,2]
[344826163,1733811038112,-1098.0,0.00011086,2]
[344826164,1733811038122,-1800.451,0.00011098,2]
[344826165,1733811038131,-180.10739639,0.00011098,2]
[344826166,1733811038140,-300.0,0.00011098,2]
[344826167,1733811038150,-300.0,0.00011098,2]
[344826168,1733811038159,-300.0,0.00011098,2]
[344826169,1733811038169,-300.0,0.00011098,2]
[344826170,1733811038178,-300.0,0.00011098,2]
[344826171,1733811038187,-300.0,0.00011098,2]
[344826173,1733811038197,-300.0,0.00011098,2]
[344826174,1733811038206,-300.0,0.00011098,2]
[344826175,1733811038215,-300.0,0.00011098,2]
[344826176,1733811038225,-300.0,0.00011098,2]
[344826177,1733811038234,-300.0,0.00011098,3]
[344826178,1733811038243,-300.0,0.00011098,3]
[344826179,1733811038254,-300.0,0.00011098,3]
[344826180,1733811038263,-300.0,0.00011098,3]